Workbook

Sheet Aide et instructions.
B2: Pour que ce classeur Excel fonctionne, il faut activer les macros et le complément Solveur.
B4: Étapes a suivre pour activer les macros:
B5: 1) Localisez l'avertissement de sécurité pour la feuille de calcul qui apparait sous la barre d'outils d'Excel.
B6: 2) Cliquez sur le bouton Options près de l'avertissement de sécurité.
B7: 3) Après avoir cliqué sur Options, l'alerte de sécurité - Macro apparaît, cliquez ensuite sur Activer ce contenu et sélectionnez OK.
B9: Étapes a suivre pour activer le complément Solver :
B10: 1) Cliquez sur l'icône ronde Office 2007 (ou sur fichier dans Office 2010) et sélectionnez Options Excel.
B11: 2) Sélectionnez l'onglet Compléments et sélectionnez OK.
B12: 3) Lorsque la fenêtre de compléments s'affiche, cochez le Complément Solveur et cliquez sur OK.

Sheet Optimisation des engrais
N8: Engrais | P8: Abbréviation | Q8: Azote | R8: Phosphore | S8: Potassium | T8: Prix/kg
N9: =B26 -> Urée | P9: Urée | Q9: =IF(OR(C26=0,C26="%"),0,C26) -> 0.46 | R9: =IF(OR(D26=0,D26="%"),0,D26*0.437) -> 0 | S9: =IF(OR(E26=0,E26="%"),0,E26*0.83) -> 0 | T9: =IF(F26<=0,0,(F26/50)) -> 270
B10: Nom du producteur: | C10: xxx | N10: =B27 -> Super phosphate triple, TSP | P10: TSP | Q10: =IF(OR(C27=0,C27="%"),0,C27) -> 0 | R10: =IF(OR(D27=0,D27="%"),0,D27*0.437) -> 0.20102 | S10: =IF(OR(E27=0,E27="%"),0,E27*0.83) -> 0 | T10: =IF(F27<=0,0,(F27/50)) -> 360
B11: Préparé par: | C11: xxx | N11: =B28 -> Phosphate diammonique, DAP | P11: DAP | Q11: 0.18 | R11: =IF(OR(D28=0,D28="%"),0,D28*0.437) -> 0.20102 | S11: =IF(OR(E28=0,E28="%"),0,E28*0.83) -> 0 | T11: =IF(F28<=0,0,(F28/50)) -> 400
B12: Date de préparation: | C12: =TODAY() -> 2016-02-24 | N12: =B29 -> Murate de potasse, KCl | P12: KCl | Q12: 0 | R12: =IF(OR(D29=0,D29="%"),0,D29*0.437) -> 0 | S12: =IF(OR(E29=0,E29="%"),0,E29*0.83) -> 0.498 | T12: =IF(F29<=0,0,(F29/50)) -> 300
N13: =B30 -> xxx | P13: =LEFT(N13,4) -> xxx | Q13: 0 | R13: =IF(OR(D30=0,D30="%"),0,D30*0.437) -> 0 | S13: =IF(OR(E30=0,E30="%"),0,E30*0.83) -> 0 | T13: =IF(F30<=0,0,(F30/50)) -> 0
B14: Choix de la culture et prix
B15: Culture | C15: Superficie ensemencée (Ha)* | D15: Valeur des grains prévue/kg †
B16: Maïs | C16: 1 | D16: 150 | N16: Contraintes Engrais | Y16: Max totaux engrais
B17: Sorgho | C17: 1 | D17: 140 | N17: Culture | O17: Urée Min | P17: TSP Min | Q17: DAP Min | R17: KCl Min | S17: =P13&" Min" -> xxx Min | T17: Urée Max | U17: TSP Max | V17: DAP Max | W17: KCl Max | X17: =P13&" Max" -> xxx Max | Y17: Somme N | Z17: Somme P | AA17: Somme K
B18: Riz de plateau, paddy | C18: 1 | D18: 180 | N18: =B16 -> Maïs | O18: 0 | P18: 0 | Q18: 0 | R18: 0 | S18: 0 | T18: =IF($F$26<=0,0,100) -> 100 | U18: =IF($F$27<=0,0,50) -> 50 | V18: =IF($F$28<=0,0,50) -> 50 | W18: 0 | X18: =IF($F$30<=0,0,200) -> 0 | Y18: 46 | Z18: 10 | AA18: 15
B19: Haricot | C19: 1 | D19: 200 | N19: Sorgho | O19: 0 | P19: 0 | Q19: 0 | R19: 0 | S19: 0 | T19: =IF($F$26<=0,0,100) -> 100 | U19: =IF($F$27<=0,0,50) -> 50 | V19: =IF($F$28<=0,0,50) -> 50 | W19: 0 | X19: 0 | Y19: 46 | Z19: 10 | AA19: 15
B20: Soja | C20: 1 | D20: 250 | N20: Riz de plateau, paddy | O20: 0 | P20: 0 | Q20: 0 | R20: 0 | S20: 0 | T20: =IF($F$26<=0,0,200) -> 200 | U20: =IF($F$27<=0,0,150) -> 150 | V20: =IF($F$28<=0,0,150) -> 150 | W20: 0 | X20: 0 | Y20: 92 | Z20: 30 | AA20: 15
B21: Arachide, coques | C21: 1 | D21: 175 | N21: Haricot | O21: 0 | P21: 0 | Q21: 0 | R21: 0 | S21: 0 | T21: 100 | U21: =IF($F$27<=0,0,120) -> 120 | V21: =IF($F$28<=0,0,120) -> 120 | W21: 0 | X21: 0 | Y21: 46 | Z21: 25 | AA21: 15
B22: Total en hectares | C22: =SUM(C16:C21) -> 6 | N22: Soja | O22: 0 | P22: 0 | Q22: 0 | R22: 0 | S22: 0 | T22: 0 | U22: =IF($F$27<=0,0,150) -> 150 | V22: 0 | W22: =IF($F$29<=0,0,100) -> 100 | X22: 0 | Y22: 15 | Z22: 30 | AA22: 50
N23: Arachide, coques | O23: 0 | P23: 0 | Q23: 0 | R23: 0 | S23: 0 | T23: 0 | U23: =IF($F$27<=0,0,175) -> 175 | V23: 0 | W23: =IF($F$29<=0,0,100) -> 100 | X23: 0 | Y23: 15 | Z23: 35 | AA23: 50
B24: Choix de l'engrais et prix
B25: Engrais | C25: N | D25: P2O5 | E25: K2O | F25: Prix/sac de 50 kg ¶*
B26: Urée | C26: 0.46 | D26: 0 | E26: 0 | F26: 13500
B27: Super phosphate triple, TSP | C27: 0 | D27: 0.46 | E27: 0 | F27: 18000
B28: Phosphate diammonique, DAP | C28: 0.18 | D28: 0.46 | E28: 0 | F28: 20000
B29: Murate de potasse, KCl | C29: 0 | D29: 0 | E29: 0.6 | F29: 15000
B30: xxx | C30: 0 | D30: 0 | E30: 0 | F30: 0 | L30: Superficie ensemencée et Prix | O30: Qantité d'engrais | T30: Unités d'engrais appliquées/Ha | AB30: Totaux Engrais
L31: Culture | M31: Ha ensemencés | N31: Valeur/kg | O31: Urée en kg | P31: TSP en kg | Q31: DAP en kg | R31: KCl en kg | S31: =P13&" kg" -> xxx kg | T31: Urée en kg (N) | U31: TSP en kg (P) | V31: DAP en kg (N) | W31: DAP en kg (P) | X31: KCl en kg (K) | Y31: =P13& " kg (N)" -> xxx kg (N) | Z31: =P13&" kg (P)" -> xxx kg (P) | AA31: =P13&" kg (K)" -> xxx kg (K) | AB31: N Som | AC31: P Som | AD31: K Som
L32: =B44 -> Maïs | M32: =C16 -> 1 | N32: =IF(D16<=0,0,D16) -> 150 | O32: 80.69193802 | P32: 0 | Q32: 49.34282487 | R32: 0 | S32: 0 | T32: =IF(M32<=0,0,O32*$Q$9) -> 37.11829149 | U32: =IF(M32<=0,0,P32*$R$10) -> 0 | V32: =IF(M32<=0,0,Q32*$Q$11) -> 8.881708477 | W32: =IF(M32<=0,0,Q32*$R$11) -> 9.918894656 | X32: =IF(M32<=0,0,R32*$S$12) -> 0 | Y32: =IF(OR(M32<=0,$C$30=0,$C$30="%"),0,S32*$Q$13) -> 0 | Z32: =IF(OR(M32<=0,$D$30=0,$D$30="%"),0,S32*$R$13) -> 0 | AA32: =IF(OR(M32<=0,$E$30=0,$E$30="%"),0,S32*$S$13) -> 0 | AB32: =T32+V32+Y32 -> 45.99999997 | AC32: =U32+W32+Z32 -> 9.918894656 | AD32: =X32+AA32 -> 0
B33: Contrainte budgétaire | L33: Sorgho | M33: 1 | N33: 140 | O33: 80.53405888 | P33: 0 | Q33: 49.7462939 | R33: 0 | S33: 0 | T33: =IF(M33<=0,0,O33*$Q$9) -> 37.04566708 | U33: =IF(M33<=0,0,P33*$R$10) -> 0 | V33: =IF(M33<=0,0,Q33*$Q$11) -> 8.954332902 | W33: =IF(M33<=0,0,Q33*$R$11) -> 10 | X33: =IF(M33<=0,0,R33*$S$12) -> 0 | Y33: =IF(OR(M33<=0,$C$30=0,$C$30="%"),0,S33*$Q$13) -> 0 | Z33: =IF(OR(M33<=0,$D$30=0,$D$30="%"),0,S33*$R$13) -> 0 | AA33: =IF(OR(M33<=0,$E$30=0,$E$30="%"),0,S33*$S$13) -> 0 | AB33: 45.99999999 | AC33: 10 | AD33: =X33+AA33 -> 0
B34: Montant disponible pour investissement dans l'engrais | C34: 1000000 | L34: Riz de plateau, paddy | M34: 1 | N34: 180 | O34: 127.8797895 | P34: 0 | Q34: 119.999725 | R34: 0 | S34: 0 | T34: 58.82470319 | U34: 0 | V34: 21.59995051 | W34: 24.12234473 | X34: 0 | Y34: 0 | Z34: 0 | AA34: 0 | AB34: 80.4246537 | AC34: 24.12234473 | AD34: 0
L35: Haricot | M35: 1 | N35: 200 | O35: 41.59641748 | P35: 0 | Q35: 71.13771536 | R35: 0 | S35: 0 | T35: 19.13435204 | U35: 0 | V35: 12.80478876 | W35: 14.30010354 | X35: 0 | Y35: 0 | Z35: 0 | AA35: 0 | AB35: 31.93914081 | AC35: 14.30010354 | AD35: 0
L36: Soja | M36: 1 | N36: 250 | O36: 0 | P36: 120.6522474 | Q36: 0 | R36: 86.64371785 | S36: 0 | T36: 0 | U36: 24.25351478 | V36: 0 | W36: 0 | X36: 43.14857149 | Y36: 0 | Z36: 0 | AA36: 0 | AB36: 0 | AC36: 24.25351478 | AD36: 43.14857149
L37: Arachide, coques | M37: 1 | N37: 175 | O37: 0 | P37: 102.7792037 | Q37: 0 | R37: 45.16581637 | S37: 0 | T37: 0 | U37: 20.66067553 | V37: 0 | W37: 0 | X37: 22.49257655 | Y37: 0 | Z37: 0 | AA37: 0 | AB37: 0 | AC37: 20.66067553 | AD37: 22.49257655
L38: Somme | M38: =SUM(M32:M37) -> 6 | O38: =SUM(O32:O37) -> 330.7022039 | P38: =SUM(P32:P37) -> 223.4314511 | Q38: =SUM(Q32:Q37) -> 290.2265592 | R38: 131.8095342 | S38: =SUM(S32:S37) -> 0 | T38: =SUM(T32:T37) -> 152.1230138 | U38: =SUM(U32:U37) -> 44.91419031 | V38: 52.24078065 | W38: 58.34134293 | X38: 65.64114804 | Y38: =SUM(Y32:Y37) -> 0 | Z38: =SUM(Z32:Z37) -> 0 | AA38: =SUM(AA32:AA37) -> 0 | AB38: =SUM(AB32:AB37) -> 204.3637945 | AC38: =SUM(AC32:AC37) -> 103.2555332 | AD38: =SUM(AD32:AD37) -> 65.64114804
N39: =B50 -> Qnté totale d'engrais nécessaire | O39: =$M$32*O32+$M$33*O33+$M$34*O34+$M$35*O35+$M$36*O36+$M$37*O37 -> 330.7022039 | P39: =$M$32*P32+$M$33*P33+$M$34*P34+$M$35*P35+$M$36*P36+$M$37*P37 -> 223.4314511 | Q39: 290.2265592 | R39: 131.8095342 | S39: 0
B41: Optimisation des engrais
C42: Dose d'application - kg/ha
B43: Culture | C43: Urée | D43: TSP | E43: DAP | F43: KCl | G43: =LEFT(B30,4) -> xxx
B44: =B16 -> Maïs | C44: =O32 -> 80.69193802 | D44: =P32 -> 0 | E44: =Q32 -> 49.34282487 | F44: =R32 -> 0 | G44: =S32 -> 0 | N44: Coût de l'engrais
B45: Sorgho | C45: =O33 -> 80.53405888 | D45: 0 | E45: 49.7462939 | F45: 0 | G45: =S33 -> 0 | N45: Culture | O45: Urée | P45: TSP | Q45: DAP | R45: KCl | S45: =P13 -> xxx | T45: Coût de l'engrais/Culture | U45: Contrainte Budget
B46: Riz de plateau, paddy | C46: 127.8797895 | D46: 0 | E46: 119.999725 | F46: 0 | G46: 0 | N46: =B44 -> Maïs | O46: =O32*$T$9 -> 21786.82327 | P46: =P32*$T$10 -> 0 | Q46: =Q32*$T$11 -> 19737.12995 | R46: =R32*$T$12 -> 0 | S46: =S32*$T$13 -> 0 | T46: =SUM(O46:S46)*M32 -> 41523.95321
B47: Haricot | C47: 41.59641748 | D47: 0 | E47: 71.13771536 | F47: 0 | G47: 0 | N47: Sorgho | O47: =O33*$T$9 -> 21744.1959 | P47: 0 | Q47: 19898.51756 | R47: 0 | S47: 0 | T47: =SUM(O47:S47)*M33 -> 41642.71346
B48: Soja | C48: 0 | D48: 120.6522474 | E48: 0 | F48: 86.64371785 | G48: 0 | N48: Riz de plateau, paddy | O48: 34527.54318 | P48: 0 | Q48: 47999.89002 | R48: 0 | S48: 0 | T48: 82527.43319
B49: Arachide, coques | C49: =O37 -> 0 | D49: 102.7792037 | E49: 0 | F49: 45.16581637 | G49: =S37 -> 0 | N49: Haricot | O49: 11231.03272 | P49: 0 | Q49: 28455.08614 | R49: 0 | S49: 0 | T49: 39686.11886
B50: Qnté totale d'engrais nécessaire | C50: =O39 -> 330.7022039 | D50: =P39 -> 223.4314511 | E50: =Q39 -> 290.2265592 | F50: =R39 -> 131.8095342 | G50: =S39 -> 0 | N50: Soja | O50: 0 | P50: 43434.80907 | Q50: 0 | R50: 25993.11535 | S50: 0 | T50: 69427.92442 | W50: Doses d'engrais
N51: Arachide, coques | O51: 0 | P51: 37000.51334 | Q51: 0 | R51: 13549.74491 | S51: 0 | T51: 50550.25825 | W51: N Qnté Req P | X51: P Qnté Req K
B52: Effets moyens prévus par ha | N52: Somme | O52: =SUM(O46:O51) -> 89289.59506 | P52: =SUM(P46:P51) -> 80435.32241 | Q52: 116090.6237 | R52: 39542.86027 | S52: 0 | T52: =SUM(T46:T51) -> 325358.4014 | U52: =C34 -> 1000000 | W52: 20 | X52: 10
B53: Culture | C53: Augmentation de rendement | D53: Rendements nets
B54: Maïs | C54: =Y60 -> 2289.796727 | D54: =Z60 -> 301945.5559
B55: Sorgho | C55: =Y62 -> 1817.521444 | D55: =Z62 -> 212810.2886
B56: Riz de plateau, paddy | C56: =Y64 -> 2726.520647 | D56: =Z64 -> 408246.2833
B57: Haricot | C57: =Y66 -> 1154.0448 | D57: =Z66 -> 191122.841
B58: Soja | C58: =Y68 -> 1228.795106 | D58: =Z68 -> 237770.852 | L58: Culture et Rendements | S58: Revenus et dépenses | W58: Engrais nécessaire | Y58: Variable Produit - kg/Ha
B59: Arachide, non décortiquée | C59: =Y70 -> 1009.932294 | D59: =Z70 -> 126187.8933 | L59: Fonctions | M59: Constante | N59: Coefficient 1 | O59: Coefficient 2 | P59: Production de base | Q59: Changements prévus | R59: Rendement prévu en Kg | S59: Valeur nette individuelle | T59: Valeur nette par engrais | U59: Coûts engrais | V59: Revenu net | W59: N Qnté Req P | X59: P Qnté Req K | Y59: Augmentation rendement | Z59: Revenus nets
L60: Maïs N | M60: 3.9287 | N60: 2.1387 | O60: 0.9476 | P60: =M60-N60 -> 1.79 | Q60: =M60-N60*POWER(O60,AB32)-(P60) -> 1.958853386 | R60: =Q60*1000 -> 1958.853386 | S60: =R60*N32*M32 -> 293828.008 | T60: =S60+S61 -> 343469.5091 | U60: =T46 -> 41523.95321 | V60: =T60-U60 -> 301945.5559 | Y60: =R60+R61 -> 2289.796727 | Z60: =IF(OR(M32=0,M32=1),$V$60,IF(M32<1,$V$60/M32,IF(M32>1,$V$60/M32,0))) -> 301945.5559
B61: Total du revenu net escompté pour l'engrais | L61: Maïs P | M61: 3.98 | N61: 0.377 | O61: 0.809 | P61: 3.603 | Q61: =(M61-N61*POWER(O61,AC32)-(P61))*W61 -> 0.3309433407 | R61: 330.9433407 | S61: =R61*N32*M32 -> 49641.50111 | W61: =IF(AB32<$W$52,0,1) -> 1
B62: Total des bénéfices nets sur les investissements dans les engrais | C62: =V76 -> 1478083.714 | L62: Sorgho N | M62: 2.27 | N62: 1.58 | O62: 0.932 | P62: 0.69 | Q62: =M62-N62*POWER(O62,AB33)-(P62) -> 1.518085973 | R62: 1518.085973 | S62: =R62*N33*M33 -> 212532.0362 | T62: =S62+S63 -> 254453.0021 | U62: =T47 -> 41642.71346 | V62: =T62-U62 -> 212810.2886 | Y62: =R62+R63 -> 1817.521444 | Z62: =IF(OR(M33=0,M33=1),$V$62,IF(M33<1,$V$62/M33,IF(M33>1,$V$62/M33,0))) -> 212810.2886
L63: Sorgho P | M63: 2.305 | N63: 0.362 | O63: 0.839 | P63: 1.943 | Q63: =(M63-N63*POWER(O63,AC33)-(P63))*W63 -> 0.2994354711 | R63: 299.4354711 | S63: =R63*N33*M33 -> 41920.96595 | W63: =IF(AB33<$W$52,0,1) -> 1
L64: Riz Plateau N | M64: 3.675 | N64: 2.396 | O64: 0.958 | P64: 1.279 | Q64: =M64-N64*POWER(O64,AB34)-(P64) -> 2.31999987 | R64: 2319.99987 | S64: =R64*N34*M34 -> 417599.9766 | T64: =S64+S65 -> 490773.7164 | U64: =T48 -> 82527.43319 | V64: =T64-U64 -> 408246.2833 | Y64: =R64+R65 -> 2726.520647 | Z64: =IF(OR(M34=0,M34=1),$V$64,IF(M34<1,$V$64/M34,IF(M34>1,$V$64/M34,0))) -> 408246.2833
L65: Riz Plateau P | M65: 3.79 | N65: 0.556 | O65: 0.947 | P65: 3.234 | Q65: =(M65-N65*POWER(O65,AC34)-(P65))*W65 -> 0.4065207768 | R65: 406.5207768 | S65: =R65*N34*M34 -> 73173.73983 | W65: =IF(AB34<$W$52,0,1) -> 1
L66: Haricot N | M66: 1.79 | N66: 0.989 | O66: 0.892 | P66: 0.801 | Q66: =M66-N66*POWER(O66,AB35)-(P66) -> 0.9633024105 | R66: 963.3024105 | S66: =R66*N35*M35 -> 192660.4821 | T66: =S66+S67 -> 230808.9599 | U66: =T49 -> 39686.11886 | V66: =T66-U66 -> 191122.841 | Y66: =R66+R67 -> 1154.0448 | Z66: =IF(OR(M35=0,M35=1),$V$66,IF(M35<1,$V$66/M35,IF(M35>1,$V$66/M35,0))) -> 191122.841
L67: Haricot P | M67: 1.81 | N67: 0.286 | O67: 0.926 | P67: 1.524 | Q67: =(M67-N67*POWER(O67,AC35)-(P67))*W67 -> 0.190742389 | R67: 190.742389 | S67: =R67*N35*M35 -> 38148.4778 | W67: =IF(AB35<$W$52,0,1) -> 1
L68: Soja P | M68: 1.922 | N68: 1.095 | O68: 0.887 | P68: 0.827 | Q68: =M68-N68*POWER(O68,AC36)-(P68) -> 1.035244365 | R68: =Q68*1000 -> 1035.244365 | S68: =R68*N36*M36 -> 258811.0913 | T68: =S68+S69 -> 307198.7765 | U68: =T50 -> 69427.92442 | V68: =T68-U68 -> 237770.852 | Y68: =R68+R69 -> 1228.795106 | Z68: =IF(OR(M36=0,M36=1),$V$68,IF(M36<1,$V$68/M36,IF(M36>1,$V$68/M36,0))) -> 237770.852
B69: Crédits: Kaizzi Kayuki C. et al. des Laboratoires nationaux de recherche agricole-Kawanda, Organisation nationale de recherche agricole et l'Université Makerere; et Charles Wortmann, Jim Jansen, et Matthew Stockton, Université du Nebraska-Lincoln | L69: Soja K | M69: 1.972 | N69: 0.285 | O69: 0.974 | P69: 1.687 | Q69: =(M69-N69*POWER(O69,AD36)-(P69))*X69 -> 0.1935507405 | R69: 193.5507405 | S69: =R69*N36*M36 -> 48387.68514 | X69: =IF(AC36<$X$52,0,1) -> 1
L70: Arachide coques P | M70: 1.792 | N70: 0.937 | O70: 0.893 | P70: 0.855 | Q70: =M70-N70*POWER(O70,AC37)-(P70) -> 0.8465731234 | R70: =Q70*1000 -> 846.5731234 | S70: =R70*N37*M37 -> 148150.2966 | T70: =S70+S71 -> 176738.1515 | U70: =T51 -> 50550.25825 | V70: =T70-U70 -> 126187.8933 | Y70: =R70+R71 -> 1009.932294 | Z70: =IF(OR(M37=0,M37=1),$V$70,IF(M37<1,$V$70/M37,IF(M37>1,$V$70/M37,0))) -> 126187.8933
B71: Pour de plus amples informations, contactez: Dr. Kayuki C. Kaizzi, NARL-NARO, kckaizzi@gmail.com or karidir@infocom.co.ug or landuse@infocom.co.ug | L71: Arachide coques K | M71: 1.72 | N71: 0.221 | O71: 0.942 | P71: 1.499 | Q71: =(M71-N71*POWER(O71,AD37)-(P71))*X71 -> 0.163359171 | R71: 163.359171 | S71: =R71*N37*M37 -> 28587.85493 | X71: =IF(AC37<$X$52,0,1) -> 1
B73: Remerciements: Soutien du personnel du Ministère Ougandais de l'Agriculture, de l'Elevage et de la Pêche; et soutien financier de la part de l'Alliance pour une révolution verte en Afrique (AGRA)-Programme de Santé des Sols, d'INTSORMIL-USAID, et de l'Université du Nebraska-Lincoln,USA.
T74: Sommes cumulées
B75: © 2013, Le Conseil d'administration de l'Université du Nebraska. Tous droits réservés. | T75: Valeur nette | U75: Coût engrais | V75: Revenus nets
T76: =SUM(T60:T71) -> 1803442.116 | U76: =SUM(U60:U71) -> 325358.4014 | V76: =SUM(V60:V71) -> 1478083.714
